fUSD/lending_fUSD_20240527
["ID","MTS","AMOUNT","RATE_DAILY","PERIOD"]
[328028957,1716783041139,-500.0,0.00027397,4]
[328028958,1716783041148,-500.0,0.00027397,4]
[328028959,1716783041322,-500.0,0.00027397,4]
[328028960,1716783041331,-500.0,0.00027397,4]
[328028961,1716783041341,-500.0,0.00027397,4]
[328028962,1716783041350,-500.0,0.00027397,4]
[328028963,1716783041359,-500.0,0.00027397,4]
[328028964,1716783041368,-500.0,0.00027397,4]
[328028965,1716783041376,-500.0,0.00027397,4]
[328028966,1716783041386,-500.0,0.00027397,4]
[328028967,1716783041395,-500.0,0.00027397,4]
[328028968,1716783041404,-500.0,0.00027397,4]
[328028969,1716783041415,-500.0,0.00027397,4]
[328028970,1716783041426,-500.0,0.00027397,4]
[328028971,1716783041435,-500.0,0.00027397,4]
[328028972,1716783041444,-509.30702276,0.00027397,4]
[328028973,1716783041454,-500.0,0.00027397,4]
[328028974,1716783041464,-500.0,0.00027397,4]
[328028975,1716783041473,-500.0,0.00027397,4]
[328028976,1716783041483,-500.0,0.00027397,4]
[328028977,1716783041494,-500.0,0.00027397,4]
[328028978,1716783041505,-500.0,0.00027397,4]
[328028979,1716783041515,-500.0,0.00027397,4]
[328028980,1716783041524,-511.48447786,0.00027397,4]
[328028981,1716783041533,-500.0,0.00027397,4]
[328028982,1716783041543,-513.36521701,0.00027397,4]
[328028983,1716783041552,-500.0,0.00027397,4]
[328028984,1716783041561,-512.45744814,0.00027397,4]
[328028985,1716783041571,-500.0,0.00027397,4]
[328028986,1716783041580,-511.40732339,0.00027397,4]
[328028987,1716783041590,-512.02458304,0.00027397,4]
[328028988,1716783041599,-500.0,0.00027397,4]
[328028989,1716783041608,-500.0,0.00027397,4]
[328028990,1716783041617,-513.06749373,0.00027397,4]
[328028991,1716783041627,-500.0,0.00027397,4]
[328028992,1716783041636,-500.0,0.00027397,4]
[328028993,1716783041645,-509.75708378,0.00027397,4]
[328028994,1716783041655,-500.0,0.00027397,4]
[328028995,1716783041665,-514.46101946,0.00027397,4]
[328028996,1716783041677,-500.0,0.00027397,4]
[328028997,1716783041686,-500.0,0.00027397,4]
[328028998,1716783041695,-500.0,0.00027397,4]
[328028999,1716783041704,-513.00379544,0.00027397,4]
[328029000,1716783041713,-509.61902172,0.00027397,4]
[328029001,1716783041722,-500.0,0.00027397,4]
[328029002,1716783041731,-516.87,0.00027397,4]
[328029003,1716783041740,-508.41579659,0.00027397,4]
[328029004,1716783041751,-500.0,0.00027397,4]
[328029005,1716783041761,-511.28361229,0.00027397,4]
[328029006,1716783041770,-500.0,0.00027397,4]
[328029007,1716783041779,-516.83263074,0.00027397,4]
[328029008,1716783041788,-512.09479538,0.00027397,4]
[328029009,1716783041798,-500.0,0.00027397,4]
[328029010,1716783041807,-500.0,0.00027397,4]
[328029011,1716783041816,-500.0,0.00027397,4]
[328029012,1716783041825,-500.0,0.00027397,4]
[328029013,1716783041834,-500.0,0.00027397,4]
[328029014,1716783041843,-500.0,0.00027397,4]
[328029015,1716783041852,-500.0,0.00027397,4]
[328029016,1716783041862,-500.0,0.00027397,4]
[328029017,1716783041871,-500.88154678,0.00027397,4]
[328029018,1716783041880,-527.32604406,0.00027397,4]
[328029019,1716783041890,-500.0,0.00027397,4]
[328029020,1716783041899,-500.0,0.00027397,4]
[328029021,1716783041908,-500.0,0.00027397,4]
[328029022,1716783041919,-500.0,0.00027397,4]
[328029023,1716783041928,-500.0,0.00027397,4]
[328029024,1716783041937,-500.0,0.00027397,4]
[328029025,1716783041946,-500.0,0.00027397,4]
[328029026,1716783041955,-500.0,0.00027397,4]
[328029027,1716783041964,-500.0,0.00027397,4]
[328029028,1716783041975,-500.0,0.00027397,4]
[328029029,1716783041983,-500.0,0.00027397,4]
[328029030,1716783041993,-500.0,0.00027397,4]
[328029031,1716783042004,-500.0,0.00027397,4]
[328029032,1716783042013,-500.0,0.00027397,4]
[328029033,1716783042023,-500.0,0.00027397,4]
[328029034,1716783042032,-500.0,0.00027397,4]
[328029035,1716783042041,-527.62537423,0.00027397,4]
[328029036,1716783042051,-250.0,0.00027558,2]
[328029037,1716783042060,-250.0,0.0002756,2]
[328029038,1716783042069,-150.99,0.0002756,2]
[328029039,1716783042079,-165.07299819,0.0002757,2]
[328029040,1716783042089,-176.54,0.00027661,3]
[328029041,1716783042098,-529.66,0.00027661,3]
[328029042,1716783042108,-500.0,0.0002767,4]
[328029043,1716783042117,-500.0,0.0002767,4]
[328029044,1716783042127,-500.0,0.0002767,4]
[328029045,1716783042136,-774.91,0.0002767,4]
[328029046,1716783042145,-500.0,0.0002767,4]
[328029047,1716783042155,-563.36667636,0.0002767,4]
[328029048,1716783042164,-500.0,0.0002767,4]
[328029049,1716783042173,-500.0,0.0002767,4]
[328029050,1716783042183,-500.0,0.0002767,4]
[328029051,1716783042192,-617.18,0.0002767,4]
[328029052,1716783042201,-574.71,0.0002767,4]
[328029053,1716783042210,-1788.72,0.0002767,4]
[328029054,1716783042219,-500.0,0.0002767,4]
[328029055,1716783042229,-500.0,0.0002767,4]
[328029056,1716783042238,-500.0,0.0002767,4]
[328029057,1716783042249,-1128.56,0.0002767,4]
[328029058,1716783042258,-500.0,0.0002767,4]
[328029059,1716783042267,-529.44669088,0.0002767,4]
[328029061,1716783042276,-500.0,0.0002767,4]
[328029062,1716783042285,-500.0,0.0002767,4]
[328029063,1716783042294,-500.0,0.0002767,4]
[328029064,1716783042304,-500.0,0.0002767,4]
[328029065,1716783042314,-500.0,0.0002767,4]
[328029066,1716783042324,-500.0,0.0002767,4]
[328029067,1716783042333,-500.0,0.0002767,4]
[328029068,1716783042343,-500.0,0.0002767,4]
[328029069,1716783042353,-500.0,0.0002767,4]
[328029070,1716783042362,-500.0,0.0002767,4]
[328029071,1716783042371,-500.0,0.0002767,4]
[328029072,1716783042381,-604.09,0.0002767,4]
[328029073,1716783042391,-500.0,0.0002767,4]
[328029074,1716783042400,-500.0,0.0002767,4]
[328029075,1716783042409,-500.0,0.0002767,4]
[328029076,1716783042423,-426.37871589,0.00027671,4]
[328029077,1716783042432,-250.86117554,0.00027671,4]
[328029078,1716783042442,-334.74,0.00027671,4]
[328029079,1716783042451,-594.68,0.00027671,4]
[328029080,1716783042462,-464.49,0.00027671,4]
[328029081,1716783042471,-500.0,0.00027671,4]
[328029082,1716783042480,-500.0,0.00027671,4]
[328029083,1716783042492,-504.01,0.00027671,4]
[328029084,1716783042503,-100.96219326,0.00027671,4]
[328029085,1716783042518,-282.78780674,0.00027671,4]
[328029086,1716783042527,-337.58,0.00027671,4]
[328029087,1716783042536,-391.19219301,0.00027671,4]
[328029088,1716783042614,-108.80780699,0.00027671,4]
[328029089,1716783042624,-500.0,0.00027671,4]
[328029090,1716783042633,-512.59191243,0.00027671,4]
[328029091,1716783042642,-310.07,0.00027671,4]
[328029092,1716783042651,-500.0,0.00027671,4]
[328029093,1716783042661,-500.0,0.00027671,4]
[328029094,1716783042670,-342.08,0.00027671,4]
[328029095,1716783042680,-209.94244797,0.00027671,4]
[328029096,1716783042689,-199.51,0.00027671,4]
[328029097,1716783042698,-548.81,0.00027671,4]
[328029098,1716783042707,-583.96,0.00027671,4]
[328029099,1716783042717,-583.25,0.00027671,4]
[328029100,1716783042726,-433.96,0.00027671,4]
[328029101,1716783042735,-500.0,0.00027671,4]
[328029102,1716783042744,-617.86,0.00027671,4]
[328029103,1716783042755,-452.69,0.00027671,4]
[328029104,1716783042764,-212.56,0.00027671,4]
[328029106,1716783042772,-500.0,0.00027671,4]
[328029107,1716783042782,-500.0,0.00027671,4]
[328029108,1716783042790,-500.0,0.00027671,4]
[328029109,1716783042799,-640.03,0.00027671,4]
[328029110,1716783042808,-500.0,0.00027671,4]
[328029111,1716783042817,-419.32,0.00027671,4]
[328029112,1716783042827,-500.0,0.00027671,4]
[328029113,1716783042836,-515.88881175,0.00027671,4]
[328029114,1716783042845,-509.02598427,0.00027671,4]
[328029115,1716783042854,-511.17997453,0.00027671,4]
[328029116,1716783042864,-589.47,0.00027671,4]
[328029117,1716783042873,-500.0,0.00027671,4]
[328029118,1716783042883,-500.0,0.00027671,4]
[328029119,1716783042893,-500.0,0.00027671,4]
[328029120,1716783042902,-500.0,0.00027671,4]
[328029121,1716783042911,-500.0,0.00027671,4]
[328029122,1716783042920,-500.0,0.00027671,4]
[328029123,1716783042930,-500.0,0.00027671,4]
[328029124,1716783042939,-500.0,0.00027671,4]
[328029125,1716783042948,-500.0,0.00027671,4]
[328029126,1716783042958,-500.0,0.00027671,4]
[328029127,1716783042967,-500.0,0.00027671,4]
[328029128,1716783042976,-500.0,0.00027671,4]
[328029129,1716783042986,-617.3,0.00027671,4]
[328029130,1716783042995,-500.0,0.00027671,4]
[328029131,1716783043008,-500.0,0.00027671,4]
[328029132,1716783043018,-500.0,0.00027671,4]
[328029133,1716783043028,-500.0,0.00027671,4]
[328029134,1716783043038,-500.0,0.00027671,4]
[328029135,1716783043048,-510.76728841,0.00027671,4]
[328029136,1716783043057,-500.0,0.00027671,4]
[328029137,1716783043067,-500.0,0.00027671,4]
[328029138,1716783043077,-500.0,0.00027671,4]
[328029139,1716783043087,-500.0,0.00027671,4]
[328029140,1716783043096,-299.39,0.00027671,4]
[328029141,1716783043106,-500.0,0.00027671,4]
[328029142,1716783043115,-508.63,0.00027671,4]
[328029143,1716783043124,-500.0,0.00027671,4]
[328029144,1716783043134,-500.0,0.00027671,4]
[328029145,1716783043144,-500.0,0.00027671,4]
[328029146,1716783043153,-500.0,0.00027671,4]
[328029147,1716783043162,-343.54,0.00027671,4]
[328029148,1716783043171,-500.0,0.00027671,4]
[328029149,1716783043181,-500.0,0.00027671,4]
[328029150,1716783043191,-500.0,0.00027671,4]
[328029151,1716783043202,-514.54556245,0.00027671,4]
[328029152,1716783043212,-302.61218757,0.00027671,4]
[328029153,1716783043222,-500.0,0.00027671,4]
[328029154,1716783043232,-500.0,0.00027671,4]
[328029155,1716783043242,-514.78580317,0.00027671,4]
[328029156,1716783043252,-500.0,0.00027671,4]
[328029157,1716783043261,-500.0,0.00027671,4]
[328029158,1716783043271,-500.0,0.00027671,4]
[328029159,1716783043280,-500.0,0.00027671,4]
[328029160,1716783043289,-500.0,0.00027671,4]
[328029161,1716783043299,-500.0,0.00027671,4]
[328029162,1716783043308,-500.0,0.00027671,4]
[328029163,1716783043317,-452.83,0.00027671,4]
[328029164,1716783043326,-500.0,0.00027671,4]
[328029165,1716783043336,-500.0,0.00027671,4]
[328029166,1716783043345,-500.0,0.00027671,4]
[328029167,1716783043354,-500.0,0.00027671,4]
[328029168,1716783043363,-500.0,0.00027671,4]
[328029169,1716783043372,-500.0,0.00027671,4]
[328029170,1716783043381,-619.17,0.00027671,4]
[328029171,1716783043391,-500.0,0.00027671,4]
[328029172,1716783043400,-500.0,0.00027671,4]
[328029173,1716783043409,-500.0,0.00027671,4]
[328029174,1716783043421,-178.55,0.00027819,2]
[328029175,1716783043431,-416.00586307,0.00027844,2]
[328029176,1716783043440,-555.31,0.00027944,4]
[328029177,1716783043449,-498.0,0.00027944,4]
[328029178,1716783043460,-515.37,0.00027944,4]
[328029179,1716783043469,-500.0,0.00027944,4]
[328029180,1716783043478,-495.0,0.00027944,4]
[328029181,1716783043487,-500.0,0.00027944,4]
[328029182,1716783043498,-400.0,0.00027944,4]
[328029183,1716783043510,-500.0,0.00027944,4]
[328029184,1716783043519,-500.0,0.00027944,4]
[328029185,1716783043528,-500.0,0.00027944,4]
[328029186,1716783043537,-500.0,0.00027944,4]
[328029187,1716783043547,-500.0,0.00027944,4]
[328029188,1716783043556,-500.0,0.00027944,4]
[328029189,1716783043565,-500.0,0.00027944,4]
[328029190,1716783043574,-500.0,0.00027944,4]
[328029191,1716783043583,-500.0,0.00027944,4]
[328029192,1716783043593,-500.0,0.00027944,4]
[328029193,1716783043602,-500.0,0.00027944,4]
[328029194,1716783043611,-500.0,0.00027944,4]
[328029195,1716783043620,-513.39,0.00027944,4]
[328029196,1716783043629,-500.0,0.00027944,4]
[328029197,1716783043639,-500.0,0.00027944,4]
[328029198,1716783043647,-500.0,0.00027944,4]
[328029199,1716783043657,-472.0,0.00027944,4]
[328029200,1716783043666,-500.0,0.00027944,4]
[328029201,1716783043675,-509.36054974,0.00027944,4]
[328029202,1716783043684,-171.60178313,0.00027944,4]
[328029203,1716783043693,-610.95,0.00027944,4]
[328029204,1716783043702,-500.0,0.00027944,4]
[328029205,1716783043711,-512.82497193,0.00027944,4]
[328029206,1716783043720,-504.75,0.00027944,4]
[328029207,1716783043729,-500.0,0.00027944,4]
[328029208,1716783043738,-485.0,0.00027944,4]
[328029209,1716783043747,-500.0,0.00027944,4]
[328029210,1716783043757,-500.0,0.00027944,4]
[328029211,1716783043766,-511.53436242,0.00027944,4]
[328029212,1716783043775,-500.0,0.00027944,4]
[328029213,1716783043784,-487.68815463,0.00027944,4]
[328029214,1716783043794,-510.92032207,0.00027944,4]
[328029215,1716783043803,-527.9,0.00027944,4]
[328029216,1716783043812,-500.0,0.00027944,4]
[328029217,1716783043822,-500.0,0.00027944,4]
[328029218,1716783043831,-500.0,0.00027944,4]
[328029219,1716783043840,-501.70595265,0.00027944,4]
[328029220,1716783043850,-337.16417585,0.00027944,4]
[328029221,1716783043861,-507.33385323,0.00027944,4]
[328029222,1716783043871,-500.0,0.00027944,4]
[328029223,1716783043881,-500.0,0.00027944,4]
[328029224,1716783043890,-500.0,0.00027944,4]
[328029225,1716783043901,-500.0,0.00027944,4]
[328029226,1716783043910,-500.0,0.00027944,4]
[328029227,1716783043919,-500.0,0.00027944,4]
[328029228,1716783043929,-500.0,0.00027944,4]
[328029229,1716783043938,-510.40398882,0.00027944,4]
[328029230,1716783043947,-510.82076841,0.00027944,4]
[328029231,1716783043957,-510.08699187,0.00027944,4]
[328029232,1716783043966,-500.0,0.00027944,4]
[328029233,1716783043975,-552.97,0.00027944,4]
[328029234,1716783043985,-500.0,0.00027944,4]
[328029235,1716783043994,-500.0,0.00027944,4]
[328029236,1716783044004,-500.0,0.00027944,4]
[328029237,1716783044013,-500.0,0.00027944,4]
[328029238,1716783044022,-500.0,0.00027944,4]
[328029239,1716783044032,-500.0,0.00027944,4]
[328029240,1716783044041,-500.0,0.00027944,4]
[328029241,1716783044050,-512.27,0.00027944,4]
[328029242,1716783044059,-627.86,0.00027944,4]
[328029243,1716783044069,-500.0,0.00027944,4]
[328029244,1716783044078,-500.0,0.00027944,4]
[328029245,1716783044088,-500.0,0.00027944,4]
[328029246,1716783044098,-500.0,0.00027944,4]
[328029247,1716783044107,-500.0,0.00027944,4]
[328029248,1716783044116,-597.70595973,0.00027944,4]
[328029249,1716783044125,-500.0,0.00027944,4]
[328029250,1716783044134,-500.0,0.00027944,4]
[328029251,1716783044144,-500.0,0.00027944,4]
[328029252,1716783044154,-500.0,0.00027944,4]
[328029253,1716783044166,-500.0,0.00027944,4]
[328029254,1716783044181,-500.0,0.00027944,4]
[328029255,1716783044192,-521.11,0.00027944,4]
[328029256,1716783044202,-512.20815071,0.00027944,4]
[328029257,1716783044213,-500.0,0.00027944,4]
[328029258,1716783044223,-500.0,0.00027944,4]
[328029259,1716783044233,-519.45000393,0.00027944,4]
[328029260,1716783044242,-500.0,0.00027944,4]
[328029261,1716783044253,-300.0,0.00027944,4]
[328029262,1716783044262,-500.0,0.00027944,4]
[328029263,1716783044272,-500.0,0.00027944,4]
[328029264,1716783044282,-507.75076995,0.00027944,4]
[328029265,1716783044291,-500.0,0.00027944,4]
[328029266,1716783044300,-510.04202169,0.00027944,4]
[328029267,1716783044310,-582.94,0.00027944,4]
[328029268,1716783044319,-515.94409365,0.00027944,4]
[328029269,1716783044328,-500.0,0.00027944,4]
[328029270,1716783044337,-150.0,0.00027944,4]
[328029271,1716783044347,-500.0,0.00027944,4]
[328029272,1716783044355,-514.09507004,0.00027944,4]
[328029273,1716783044365,-500.0,0.00027944,4]
[328029274,1716783044375,-500.0,0.00027944,4]
[328029275,1716783044384,-500.0,0.00027944,4]
[328029276,1716783044393,-500.0,0.00027944,4]
[328029277,1716783044402,-500.0,0.00027944,4]
[328029278,1716783044411,-500.0,0.00027944,4]
[328029279,1716783044424,-522.83550637,0.00027944,4]
[328029280,1716783044433,-525.3604398,0.00027944,4]
[328029281,1716783044443,-500.0,0.00027944,4]
[328029282,1716783044452,-500.0,0.00027944,4]
[328029283,1716783044462,-622.19112812,0.00027944,4]
[328029284,1716783044471,-500.0,0.00027944,4]
[328029285,1716783044480,-500.0,0.00027944,4]
[328029286,1716783044490,-500.0,0.00027944,4]
[328029287,1716783044501,-569.19421229,0.00027944,4]
[328029288,1716783044510,-500.0,0.00027944,4]
[328029289,1716783044519,-500.0,0.00027944,4]
[328029290,1716783044528,-500.0,0.00027944,4]
[328029291,1716783044537,-520.61121654,0.00027944,4]
[328029292,1716783044547,-500.0,0.00027944,4]
[328029293,1716783044556,-500.0,0.00027944,4]
[328029294,1716783044566,-500.0,0.00027944,4]
[328029295,1716783044575,-508.00926795,0.00027944,4]
[328029296,1716783044585,-500.0,0.00027944,4]
[328029297,1716783044594,-515.7134886,0.00027944,4]
[328029298,1716783044603,-512.67178431,0.00027944,4]
[328029299,1716783044613,-500.0,0.00027944,4]
[328029300,1716783044623,-500.0,0.00027944,4]
[328029301,1716783044632,-589.81122702,0.00027944,4]
[328029302,1716783044642,-500.0,0.00027944,4]
[328029303,1716783044651,-515.58607395,0.00027944,4]
[328029304,1716783044660,-500.0,0.00027944,4]
[328029305,1716783044669,-500.0,0.00027944,4]
[328029306,1716783044679,-500.0,0.00027944,4]
[328029307,1716783044688,-500.0,0.00027944,4]
[328029308,1716783044697,-509.9474434,0.00027944,4]
[328029309,1716783044707,-500.0,0.00027944,4]
[328029310,1716783044716,-500.0,0.00027944,4]
[328029311,1716783044727,-500.0,0.00027944,4]
[328029312,1716783044736,-500.0,0.00027944,4]
[328029313,1716783044746,-500.0,0.00027944,4]
[328029314,1716783044758,-500.0,0.00027944,4]
[328029315,1716783044767,-500.0,0.00027944,4]
[328029316,1716783044776,-500.0,0.00027944,4]
[328029317,1716783044785,-500.0,0.00027944,4]
[328029318,1716783044794,-500.0,0.00027944,4]
[328029319,1716783044804,-500.0,0.00027944,4]
[328029320,1716783044815,-500.0,0.00027944,4]
[328029321,1716783044825,-511.64604561,0.00027944,4]
[328029322,1716783044834,-500.0,0.00027944,4]
[328029323,1716783044844,-500.0,0.00027944,4]
[328029324,1716783044853,-500.0,0.00027944,4]
[328029325,1716783044862,-648.64,0.00027944,4]
[328029326,1716783044871,-500.0,0.00027944,4]
[328029327,1716783044880,-500.0,0.00027944,4]
[328029328,1716783044889,-500.0,0.00027944,4]
[328029329,1716783044899,-510.28341226,0.00027944,4]
[328029330,1716783044910,-500.0,0.00027944,4]
[328029331,1716783044920,-505.995102,0.00027944,4]
[328029332,1716783044930,-500.0,0.00027944,4]
[328029333,1716783044940,-500.0,0.00027944,4]
[328029334,1716783044951,-500.0,0.00027944,4]
[328029335,1716783044961,-517.60874704,0.00027944,4]
[328029336,1716783044971,-500.0,0.00027944,4]
[328029337,1716783044981,-511.52566278,0.00027944,4]
[328029338,1716783044992,-510.27380245,0.00027944,4]
[328029339,1716783045001,-518.26246675,0.00027944,4]
[328029340,1716783045011,-500.0,0.00027944,4]
[328029341,1716783045021,-514.43223461,0.00027944,4]
[328029342,1716783045031,-500.0,0.00027944,4]
[328029343,1716783045040,-520.14339637,0.00027944,4]
[328029344,1716783045050,-506.46681203,0.00027944,4]
[328029345,1716783045059,-500.0,0.00027944,4]
[328029346,1716783045069,-500.0,0.00027944,4]
[328029347,1716783045080,-500.0,0.00027944,4]
[328029348,1716783045089,-637.97360744,0.00027944,4]
[328029349,1716783045099,-500.0,0.00027944,4]
[328029350,1716783045109,-500.0,0.00027944,4]
[328029351,1716783045119,-511.22743033,0.00027944,4]
[328029352,1716783045128,-525.17,0.00027944,4]
[328029353,1716783045138,-510.9232639,0.00027944,4]
[328029354,1716783045148,-510.87516836,0.00027944,4]
[328029355,1716783045157,-500.0,0.00027944,4]
[328029356,1716783045166,-500.0,0.00027944,4]
[328029357,1716783045175,-500.0,0.00027944,4]
[328029358,1716783045185,-509.07,0.00027944,4]
[328029359,1716783045194,-500.0,0.00027944,4]
[328029360,1716783045204,-510.24306865,0.00027944,4]
[328029361,1716783045214,-500.0,0.00027944,4]
[328029362,1716783045224,-500.0,0.00027944,4]
[328029363,1716783045235,-500.0,0.00027944,4]
[328029364,1716783045245,-500.0,0.00027944,4]
[328029365,1716783045255,-500.0,0.00027944,4]
[328029367,1716783045266,-500.0,0.00027944,4]
[328029369,1716783045276,-500.0,0.00027944,4]
[328029370,1716783045287,-500.0,0.00027944,4]
[328029371,1716783045298,-500.0,0.00027944,4]
[328029372,1716783045308,-555.38,0.00027944,4]
[328029373,1716783045319,-500.0,0.00027944,4]
[328029374,1716783045329,-500.0,0.00027944,4]
[328029375,1716783045339,-500.0,0.00027944,4]
[328029376,1716783045349,-500.0,0.00027944,4]
[328029377,1716783045359,-500.0,0.00027944,4]
[328029378,1716783045525,-518.85,0.00027944,4]
[328029379,1716783045536,-500.0,0.00027944,4]
[328029380,1716783045547,-500.0,0.00027944,4]
[328029381,1716783045557,-500.0,0.00027944,4]
[328029382,1716783045569,-500.0,0.00027944,4]
[328029383,1716783045579,-500.0,0.00027944,4]
[328029384,1716783045590,-505.04076796,0.00027944,4]
[328029385,1716783045601,-500.0,0.00027944,4]
[328029386,1716783045611,-510.57150396,0.00027944,4]
[328029387,1716783045622,-500.0,0.00027944,4]
[328029388,1716783045632,-500.0,0.00027944,4]
[328029389,1716783045643,-500.0,0.00027944,4]
[328029390,1716783045653,-500.0,0.00027944,4]
[328029391,1716783045664,-519.93867243,0.00027944,4]
[328029392,1716783045674,-580.89,0.00027944,4]
[328029393,1716783045685,-500.0,0.00027944,4]
[328029394,1716783045695,-500.0,0.00027944,4]
[328029395,1716783045706,-500.0,0.00027944,4]
[328029396,1716783045716,-500.0,0.00027944,4]
[328029397,1716783045726,-500.0,0.00027944,4]
[328029398,1716783045737,-500.0,0.00027944,4]
[328029399,1716783045748,-500.0,0.00027944,4]
[328029400,1716783045759,-500.0,0.00027944,4]
[328029401,1716783045770,-500.0,0.00027944,4]
[328029402,1716783045780,-500.0,0.00027944,4]
[328029403,1716783045791,-500.0,0.00027944,4]
[328029404,1716783045801,-500.0,0.00027944,4]
[328029405,1716783045812,-500.0,0.00027944,4]
[328029406,1716783045822,-500.0,0.00027944,4]
[328029407,1716783045832,-500.0,0.00027944,4]
[328029408,1716783045842,-500.0,0.00027944,4]
[328029409,1716783045852,-774.91,0.00027944,4]
[328029410,1716783045861,-500.0,0.00027944,4]
[328029411,1716783045872,-500.0,0.00027944,4]
[328029412,1716783045882,-500.0,0.00027944,4]
[328029413,1716783045891,-513.3034053,0.00027944,4]
[328029414,1716783045901,-500.0,0.00027944,4]
[328029415,1716783045911,-511.01579491,0.00027944,4]
[328029416,1716783045921,-500.0,0.00027944,4]
[328029417,1716783045931,-500.0,0.00027944,4]
[328029418,1716783045941,-500.0,0.00027944,4]
[328029419,1716783045950,-500.0,0.00027944,4]
[328029420,1716783045960,-500.0,0.00027944,4]
[328029421,1716783045969,-511.59886133,0.00027944,4]
[328029422,1716783045979,-500.0,0.00027944,4]
[328029423,1716783045989,-500.0,0.00027944,4]
[328029424,1716783045999,-517.52293916,0.00027944,4]
[328029425,1716783046009,-492.04445723,0.00027944,4]
[328029426,1716783046018,-620.99920154,0.00027944,4]
[328029427,1716783046028,-500.0,0.00027944,4]
[328029428,1716783046037,-507.49467463,0.00027944,4]
[328029429,1716783046047,-500.0,0.00027944,4]
[328029430,1716783046057,-197.76766468,0.00027944,4]
[328029431,1716783046067,-500.0,0.00027944,4]
[328029432,1716783046077,-500.0,0.00027944,4]
[328029433,1716783046086,-500.0,0.00027944,4]
[328029434,1716783046096,-500.0,0.00027944,4]
[328029435,1716783046105,-509.9625226,0.00027944,4]
[328029436,1716783046115,-500.0,0.00027944,4]
[328029437,1716783046124,-500.0,0.00027944,4]
[328029438,1716783046133,-514.87525601,0.00027944,4]
[328029439,1716783046143,-509.00266721,0.00027944,4]
[328029440,1716783046152,-512.54111862,0.00027944,4]
[328029441,1716783046161,-500.0,0.00027944,4]
[328029442,1716783046170,-500.0,0.00027944,4]
[328029443,1716783046180,-500.0,0.00027944,4]
[328029444,1716783046189,-510.46424728,0.00027944,4]
[328029445,1716783046198,-522.76182651,0.00027944,4]
[328029446,1716783046207,-500.0,0.00027944,4]
[328029447,1716783046216,-525.5346634,0.00027944,4]
[328029448,1716783046227,-508.4,0.00027944,4]
[328029449,1716783046236,-500.0,0.00027944,4]
[328029450,1716783046245,-500.0,0.00027944,4]
[328029451,1716783046256,-500.0,0.00027944,4]
[328029452,1716783046266,-500.0,0.00027944,4]
[328029453,1716783046275,-500.0,0.00027944,4]
[328029454,1716783046284,-500.0,0.00027944,4]
[328029455,1716783046294,-514.01217133,0.00027944,4]
[328029456,1716783046303,-574.71,0.00027944,4]
[328029457,1716783046312,-513.84285013,0.00027944,4]
[328029458,1716783046322,-511.05982913,0.00027944,4]
[328029459,1716783046331,-1788.72,0.00027944,4]
[328029460,1716783046340,-500.0,0.00027944,4]